[Event "Junior-SM 2025"]
[Site "Uppsala, Sweden"]
[Date "2025.07.05"]
[Round "8.1"]
[White "Wernber, Hugo"]
[Black "Karlsson, Stefan"]
[Result "1-0"]
[TimeControl "90 min for 40 move + 30 min with an increment of 30 sec starting move 1"]
[WhiteTitle "FM"]
[WhiteFideId "1737511"]
[BlackFideId "1771183"]
[WhiteElo "2247"]
[BlackElo "2126"]

1. e4 {[%clk 01:30:57]} {[%emt 00:00:02]} c5 {[%clk 01:30:35]} {[%emt
00:00:25]} 2. d4 {[%clk 01:31:23]} {[%emt 00:00:04]} cxd4 {[%clk 01:31:00]}
{[%emt 00:00:06]} 3. Qxd4 {[%clk 01:31:49]} {[%emt 00:00:04]} Nf6 {[%clk
01:28:22]} {[%emt 00:03:07]} 4. Nc3 {[%clk 01:30:42]} {[%emt 00:01:38]} Nc6
{[%clk 01:26:06]} {[%emt 00:02:45]} 5. Qd3 {[%clk 01:30:53]} {[%emt 00:00:19]}
g6 {[%clk 01:23:28]} {[%emt 00:03:08]} 6. Nf3 {[%clk 01:30:01]} {[%emt
00:01:23]} d6 {[%clk 01:23:29]} {[%emt 00:00:29]} 7. Be2 {[%clk 01:30:03]}
{[%emt 00:00:28]} Bg7 {[%clk 01:23:47]} {[%emt 00:00:12]} 8. Nd5 {[%clk
01:30:17]} {[%emt 00:00:16]} O-O {[%clk 01:15:28]} {[%emt 00:08:49]} 9. O-O
{[%clk 01:30:01]} {[%emt 00:00:45]} Bg4 {[%clk 01:10:08]} {[%emt 00:05:50]} 10.
c3 {[%clk 01:29:17]} {[%emt 00:01:15]} Nd7 {[%clk 01:04:39]} {[%emt 00:05:58]}
11. Bg5 {[%clk 01:29:12]} {[%emt 00:00:36]} f6 {[%clk 00:54:26]} {[%emt
00:10:42]} 12. Bh4 {[%clk 01:15:42]} {[%emt 00:14:01]} e6 {[%clk 00:42:00]}
{[%emt 00:12:55]} 13. Ne3 {[%clk 01:12:42]} {[%emt 00:03:30]} Bxf3 {[%clk
00:40:23]} {[%emt 00:02:07]} 14. Bxf3 {[%clk 01:10:30]} {[%emt 00:02:43]} Nde5
{[%clk 00:39:39]} {[%emt 00:01:14]} 15. Qd1 {[%clk 01:06:36]} {[%emt 00:04:23]}
Qd7 {[%clk 00:35:03]} {[%emt 00:05:06]} 16. Be2 {[%clk 01:04:15]} {[%emt
00:02:51]} Nf7 {[%clk 00:34:56]} {[%emt 00:00:36]} 17. f4 {[%clk 00:56:32]}
{[%emt 00:08:14]} f5 {[%clk 00:32:01]} {[%emt 00:03:25]} 18. exf5 {[%clk
00:54:20]} {[%emt 00:02:42]} gxf5 {[%clk 00:32:14]} {[%emt 00:00:17]} 19. g4
{[%clk 00:53:52]} {[%emt 00:00:58]} fxg4 {[%clk 00:28:49]} {[%emt 00:03:55]} 20.
Bxg4 {[%clk 00:43:37]} {[%emt 00:10:45]} Nh6 {[%clk 00:27:29]} {[%emt
00:01:49]} 21. f5 {[%clk 00:30:12]} {[%emt 00:13:56]} Nxg4 {[%clk 00:26:09]}
{[%emt 00:01:51]} 22. Qxg4 {[%emt 00:01:58]} Ne5 {[%clk 00:25:23]} {[%emt
00:01:04]} 23. Qh5 {[%clk 00:20:59]} {[%emt 00:08:26]} exf5 {[%clk 00:19:45]}
{[%emt 00:06:09]} 24. Nxf5 {[%clk 00:21:08]} {[%emt 00:00:20]} Rf7 {[%clk
00:17:59]} {[%emt 00:02:16]} 25. Bg3 {[%clk 00:18:07]} {[%emt 00:03:31]} Raf8
{[%clk 00:16:44]} {[%emt 00:01:45]} 26. Nd4 {[%clk 00:14:44]} {[%emt 00:03:53]}
Qe8 {[%clk 00:13:50]} {[%emt 00:03:23]} 27. Rxf7 {[%clk 00:12:37]} {[%emt
00:02:38]} Rxf7 {[%clk 00:14:00]} {[%emt 00:00:20]} 28. Qe2 {[%clk 00:12:14]}
{[%emt 00:00:52]} Qc8 {[%clk 00:09:44]} {[%emt 00:04:46]} 29. Rf1 {[%clk
00:11:19]} {[%emt 00:01:25]} Rxf1+ {[%clk 00:09:35]} {[%emt 00:00:39]} 30. Kxf1
{[%clk 00:10:20]} {[%emt 00:01:28]} a6 {[%clk 00:08:41]} {[%emt 00:01:25]} 31.
Kg2 {[%clk 00:09:51]} {[%emt 00:00:58]} Qc4 {[%clk 00:06:07]} {[%emt 00:03:04]}
32. Qe4 {[%clk 00:05:43]} {[%emt 00:04:39]} Qxa2 {[%clk 00:05:48]} {[%emt
00:00:49]} 33. Qxb7 {[%clk 00:06:00]} {[%emt 00:00:13]} Nd3 {[%clk 00:02:48]}
{[%emt 00:03:30]} 34. Qc8+ {[%clk 00:04:40]} {[%emt 00:01:51]} Bf8 {[%clk
00:03:07]} {[%emt 00:00:10]} 35. Qg4+ {[%clk 00:05:00]} {[%emt 00:00:10]} Bg7
{[%clk 00:03:08]} {[%emt 00:00:29]} 36. Qc8+ {[%clk 00:04:48]} {[%emt
00:00:42]} Bf8 {[%clk 00:03:33]} {[%emt 00:00:05]} 37. Ne6 {[%clk 00:02:44]}
{[%emt 00:02:33]} Qd5+ {[%clk 00:03:42]} {[%emt 00:00:20]} 38. Kg1 {[%clk
00:02:27]} {[%emt 00:00:47]} Qf3 {[%clk 00:03:05]} {[%emt 00:01:08]} 39. Qxf8+
{[%clk 00:01:11]} {[%emt 00:01:46]} Qxf8 {[%clk 00:03:30]} {[%emt 00:00:06]} 40.
Nxf8 {[%clk 00:01:35]} {[%emt 00:00:06]} Kxf8 {[%clk 00:03:43]} {[%emt
00:00:17]} 41. Bxd6+ {[%clk 00:01:58]} {[%emt 00:00:07]} Kf7 {[%clk 00:02:35]}
{[%emt 00:01:37]} 42. Ba3 {[%clk 00:25:05]} {[%emt 00:07:23]} Ke6 {[%clk
00:27:32]} {[%emt 00:05:32]} 43. Kf1 {[%clk 00:22:26]} {[%emt 00:03:09]} Kd5
{[%clk 00:27:29]} {[%emt 00:00:34]} 44. b3 {[%clk 00:22:24]} {[%emt 00:00:32]}
Ke4 {[%clk 00:20:08]} {[%emt 00:07:51]} 45. Ke2 {[%clk 00:20:07]} {[%emt
00:02:47]} Ne5 {[%clk 00:15:21]} {[%emt 00:05:17]} 46. Bd6 {[%clk 00:18:33]}
{[%emt 00:02:04]} Nc6 {[%clk 00:15:11]} {[%emt 00:00:39]} 47. Kd2 {[%clk
00:17:41]} {[%emt 00:01:23]} Na5 {[%clk 00:14:16]} {[%emt 00:01:26]} 48. Kc2
{[%clk 00:17:28]} {[%emt 00:00:42]} Nc6 {[%clk 00:13:43]} {[%emt 00:01:03]} 49.
Bc7 {[%clk 00:16:22]} {[%emt 00:01:36]} Ne7 {[%clk 00:09:47]} {[%emt 00:04:26]}
50. c4 {[%clk 00:15:11]} {[%emt 00:01:41]} Kd4 {[%clk 00:09:55]} {[%emt
00:00:21]} 51. Bb6+ {[%clk 00:14:48]} {[%emt 00:00:54]} Ke5 {[%clk 00:10:19]}
{[%emt 00:00:06]} 52. Bc5 {[%clk 00:13:49]} {[%emt 00:01:28]} Nc6 {[%clk
00:07:13]} {[%emt 00:03:36]} 53. b4 {[%clk 00:11:55]} {[%emt 00:02:24]} Ke6
{[%clk 00:06:09]} {[%emt 00:01:35]} 54. Kc3 {[%clk 00:06:10]} {[%emt 00:06:14]}
Ne5 {[%clk 00:06:32]} {[%emt 00:00:07]} 55. Bf2 {[%clk 00:04:16]} {[%emt
00:02:24]} Kd7 {[%clk 00:05:56]} {[%emt 00:01:07]} 56. Bg3 {[%clk 00:04:32]}
{[%emt 00:00:14]} Nc6 {[%clk 00:05:09]} {[%emt 00:01:16]} 57. b5 {[%clk
00:04:13]} {[%emt 00:00:49]} axb5 {[%clk 00:05:33]} {[%emt 00:00:07]} 58. cxb5
{[%clk 00:04:37]} {[%emt 00:00:06]} Nd8 {[%clk 00:04:32]} {[%emt 00:01:31]} 59.
Kd4 {[%clk 00:04:20]} {[%emt 00:00:47]} Kc8 {[%clk 00:04:38]} {[%emt 00:00:24]}
60. Kd5 {[%clk 00:03:03]} {[%emt 00:01:46]} Kb7 {[%clk 00:04:57]} {[%emt
00:00:12]} 61. Bf2 {[%clk 00:03:11]} {[%emt 00:00:21]} Nf7 {[%clk 00:03:13]}
{[%emt 00:02:14]} 62. Be3 {[%clk 00:03:04]} {[%emt 00:00:37]} Nh8 {[%clk
00:03:19]} {[%emt 00:00:25]} 63. Ke6 {[%clk 00:02:05]} {[%emt 00:01:29]} Ng6
{[%clk 00:03:41]} {[%emt 00:00:07]} 64. Kf5 {[%clk 00:01:52]} {[%emt 00:00:43]}
Nh4+ {[%clk 00:03:24]} {[%emt 00:00:47]} 65. Kg4 {[%clk 00:02:07]} {[%emt
00:00:15]} Ng6 {[%clk 00:03:50]} {[%emt 00:00:04]} 66. h4 {[%clk 00:01:56]}
{[%emt 00:00:42]} Ne5+ {[%clk 00:03:33]} {[%emt 00:00:47]} 67. Kf5 {[%clk
00:01:30]} {[%emt 00:00:56]} Nf7 {[%clk 00:02:51]} {[%emt 00:01:11]} 68. Bc5
{[%clk 00:01:23]} {[%emt 00:00:37]} Kc7 {[%clk 00:03:09]} {[%emt 00:00:13]} 69.
h5 {[%clk 00:01:33]} {[%emt 00:00:19]} Kd7 {[%clk 00:03:16]} {[%emt 00:00:24]}
70. Kf6 {[%clk 00:01:37]} {[%emt 00:00:25]} Nd8 {[%clk 00:03:41]} {[%emt
00:00:06]} 71. Be3 {[%clk 00:01:34]} {[%emt 00:00:33]} Nb7 {[%clk 00:03:22]}
{[%emt 00:00:49]} 72. h6 {[%clk 00:01:19]} {[%emt 00:00:45]} Nd6 {[%clk
00:03:20]} {[%emt 00:00:31]} 73. b6 {[%clk 00:01:17]} {[%emt 00:00:31]} Ne8+
{[%clk 00:03:21]} {[%emt 00:00:30]} 74. Kf7 {[%clk 00:01:38]} {[%emt 00:00:10]}
Nd6 {[%clk 00:03:44]} {[%emt 00:00:07]} 75. Kg7 {[%clk 00:00:40]} {[%emt
00:01:27]} Ke6 {[%clk 00:03:26]} {[%emt 00:00:49]} 76. Bf4 {[%clk 00:00:42]}
{[%emt 00:00:28]} Nb7 {[%clk 00:03:00]} {[%emt 00:00:56]} 77. Bd2 {[%clk
00:00:52]} {[%emt 00:00:20]} Nc5 {[%clk 00:02:48]} {[%emt 00:00:42]} 78. Bb4
{[%clk 00:01:02]} {[%emt 00:00:19]} Nb7 {[%clk 00:03:06]} {[%emt 00:00:13]} 79.
Kf8 {[%clk 00:01:20]} {[%emt 00:00:12]} Kd7 {[%clk 00:02:46]} {[%emt 00:00:50]}
80. Kg7 {[%clk 00:01:40]} {[%emt 00:00:10]} Ke6 {[%clk 00:03:03]} {[%emt
00:00:12]} 81. Kf8 {[%clk 00:02:01]} {[%emt 00:00:10]} Kd7 {[%clk 00:02:34]}
{[%emt 00:00:59]} 82. Kf7 {[%clk 00:02:23]} {[%emt 00:00:08]} Nd8 {[%clk
00:02:54]} {[%emt 00:00:09]} 83. Kf6 {[%clk 00:02:42]} {[%emt 00:00:12]} Nb7
{[%clk 00:03:12]} {[%emt 00:00:12]} 84. Bd2 {[%clk 00:02:42]} {[%emt 00:00:29]}
Nd6 {[%clk 00:03:16]} {[%emt 00:00:27]} 85. Bf4 {[%clk 00:02:54]} {[%emt
00:00:18]} Nb7 {[%clk 00:03:41]} {[%emt 00:00:05]} 86. Bc7 {[%clk 00:03:03]}
{[%emt 00:00:20]} Nc5 {[%clk 00:02:49]} {[%emt 00:01:22]} 87. Ke5 {[%clk
00:03:23]} {[%emt 00:00:11]} Kc6 {[%clk 00:02:52]} {[%emt 00:00:27]} 88. Bd8
{[%clk 00:02:50]} {[%emt 00:01:02]} Nb7 {[%clk 00:03:04]} {[%emt 00:00:18]} 89.
Bc7 {[%clk 00:02:13]} {[%emt 00:01:07]} Nc5 {[%clk 00:03:24]} {[%emt 00:00:10]}
90. Kf6 {[%clk 00:01:45]} {[%emt 00:00:58]} Kd7 {[%clk 00:03:45]} {[%emt
00:00:10]} 91. Kf5 {[%clk 00:02:08]} {[%emt 00:00:07]} Nb7 {[%clk 00:03:50]}
{[%emt 00:00:24]} 92. Ke5 {[%clk 00:02:21]} {[%emt 00:00:17]} Nc5 {[%clk
00:02:34]} {[%emt 00:01:46]} 93. Kd5 {[%clk 00:02:43]} {[%emt 00:00:08]} Nb7
{[%clk 00:02:37]} {[%emt 00:00:28]} 94. Bf4 {[%clk 00:03:04]} {[%emt 00:00:08]}
Nd8 {[%clk 00:02:48]} {[%emt 00:00:19]} 95. Bd2 {[%clk 00:03:21]} {[%emt
00:00:12]} Nb7 {[%clk 00:03:08]} {[%emt 00:00:11]} 96. Bg5 {[%clk 00:03:20]}
{[%emt 00:00:31]} Na5 {[%clk 00:03:22]} {[%emt 00:00:16]} 97. Kc5 {[%clk
00:03:33]} {[%emt 00:00:17]} Nb7+ {[%clk 00:03:34]} {[%emt 00:00:19]} 98. Kb5
{[%clk 00:03:31]} {[%emt 00:00:32]} Nd6+ {[%clk 00:03:18]} {[%emt 00:00:46]} 99.
Ka6 {[%clk 00:03:48]} {[%emt 00:00:13]} Kc6 {[%clk 00:03:45]} {[%emt 00:00:03]}
100. Be7 {[%clk 00:03:34]} {[%emt 00:00:43]} Nb7 {[%clk 00:02:41]} {[%emt
00:01:35]} 101. Ka7 {[%clk 00:01:05]} {[%emt 00:02:58]} Na5 {[%clk 00:02:59]}
{[%emt 00:00:13]} 102. Bb4 {[%clk 00:01:01]} {[%emt 00:00:33]} Nb7 {[%clk
00:03:12]} {[%emt 00:00:18]} 103. Ba3 {[%clk 00:00:58]} {[%emt 00:00:32]} Nd8
{[%clk 00:02:48]} {[%emt 00:00:54]} 104. Be7 {[%clk 00:01:12]} {[%emt
00:00:16]} Nb7 {[%clk 00:02:34]} {[%emt 00:00:44]} 105. Ka6 {[%clk 00:01:33]}
{[%emt 00:00:09]} 1-0

[Event "Junior-SM 2025"]
[Site "Uppsala, Sweden"]
[Date "2025.07.05"]
[Round "8.2"]
[White "Religa, Marek"]
[Black "Seo, Jung Hyun"]
[Result "1/2-1/2"]
[TimeControl "90 min for 40 move + 30 min with an increment of 30 sec starting move 1"]
[WhiteFideId "1750208"]
[BlackFideId "1735667"]
[WhiteElo "2228"]
[BlackElo "2153"]

1. e4 {[%clk 01:29:28]} {[%emt 00:01:32]} e5 {[%clk 01:30:48]} {[%emt
00:00:12]} 2. d4 {[%emt 00:00:09]} exd4 {[%clk 01:31:08]} {[%emt 00:00:08]} 3.
Qxd4 {[%clk 01:30:20]} {[%emt 00:00:02]} Nc6 {[%clk 01:31:31]} {[%emt
00:00:06]} 4. Qe3 {[%clk 01:30:42]} {[%emt 00:00:08]} Nf6 {[%clk 01:31:49]}
{[%emt 00:00:12]} 5. Nc3 {[%clk 01:31:11]} {[%emt 00:00:02]} Bb4 {[%clk
01:32:12]} {[%emt 00:00:06]} 6. Bd2 {[%clk 01:31:39]} {[%emt 00:00:03]} O-O
{[%clk 01:30:48]} {[%emt 00:01:54]} 7. O-O-O {[%clk 01:32:07]} {[%emt
00:00:02]} Re8 {[%clk 01:31:11]} {[%emt 00:00:07]} 8. Qf4 {[%clk 01:32:19]}
{[%emt 00:00:16]} d6 {[%clk 01:23:58]} {[%emt 00:07:44]} 9. f3 {[%clk
01:32:48]} {[%emt 00:00:01]} Be6 {[%clk 01:23:06]} {[%emt 00:01:21]} 10. Nge2
{[%clk 01:33:18]} {[%emt 00:00:02]} Nh5 {[%clk 01:14:31]} {[%emt 00:09:05]} 11.
Qg5 {[%clk 01:33:24]} {[%emt 00:00:24]} Qxg5 {[%clk 01:14:35]} {[%emt
00:00:26]} 12. Bxg5 {[%clk 01:33:53]} {[%emt 00:00:01]} h6 {[%clk 01:12:43]}
{[%emt 00:02:22]} 13. Bh4 {[%clk 01:31:14]} {[%emt 00:03:09]} Ne5 {[%clk
00:59:37]} {[%emt 00:13:36]} 14. Bf2 {[%clk 01:28:54]} {[%emt 00:02:50]} c6
{[%clk 00:48:05]} {[%emt 00:12:02]} 15. a3 {[%emt 00:00:28]} Bc5 {[%clk
00:48:24]} {[%emt 00:00:10]} 16. Bxc5 {[%clk 01:29:18]} {[%emt 00:00:09]} dxc5
{[%clk 00:48:53]} {[%emt 00:00:01]} 17. Ng3 {[%clk 01:25:18]} {[%emt 00:04:30]}
Nf4 {[%clk 00:46:36]} {[%emt 00:02:46]} 18. Nge2 {[%clk 01:25:18]} {[%emt
00:00:31]} Nh5 {[%clk 00:46:38]} {[%emt 00:00:27]} 19. Ng3 {[%clk 01:25:36]}
{[%emt 00:00:13]} Nf4 {[%clk 00:47:04]} {[%emt 00:00:04]} 20. Nce2 {[%clk
01:25:24]} {[%emt 00:00:42]} Nxe2+ {[%clk 00:47:13]} {[%emt 00:00:21]} 21. Nxe2
{[%clk 01:23:56]} {[%emt 00:01:58]} Rad8 {[%clk 00:47:22]} {[%emt 00:00:21]} 22.
Rxd8 {[%clk 01:24:21]} {[%emt 00:00:04]} Rxd8 {[%clk 00:47:52]} 23. Nf4 {[%clk
01:22:19]} {[%emt 00:02:32]} Bc8 {[%clk 00:42:16]} {[%emt 00:06:06]} 24. Be2
{[%clk 01:19:22]} {[%emt 00:03:27]} g5 {[%clk 00:41:07]} {[%emt 00:01:38]} 25.
Nh5 {[%clk 01:15:42]} {[%emt 00:04:10]} Ng6 {[%clk 00:39:06]} {[%emt 00:02:31]}
26. g3 {[%clk 01:11:11]} {[%emt 00:05:02]} f5 {[%clk 00:34:10]} {[%emt
00:05:26]} 27. f4 {[%clk 00:44:30]} {[%emt 00:27:11]} fxe4 {[%clk 00:25:02]}
{[%emt 00:09:38]} 28. fxg5 {[%clk 00:44:35]} {[%emt 00:00:24]} hxg5 {[%clk
00:24:52]} {[%emt 00:00:40]} 29. Nf6+ {[%clk 00:43:48]} {[%emt 00:01:17]} Kg7
{[%clk 00:25:15]} {[%emt 00:00:06]} 30. Nxe4 {[%clk 00:43:41]} {[%emt
00:00:38]} Re8 {[%clk 00:25:25]} {[%emt 00:00:20]} 31. Bd3 {[%clk 00:43:03]}
{[%emt 00:01:08]} Re5 {[%clk 00:12:24]} {[%emt 00:13:31]} 32. Nd6 {[%clk
00:39:45]} {[%emt 00:03:49]} Ne7 {[%clk 00:12:48]} {[%emt 00:00:06]} 33. h4
{[%clk 00:31:06]} {[%emt 00:09:08]} gxh4 {[%clk 00:08:55]} {[%emt 00:04:24]} 34.
gxh4 {[%clk 00:29:47]} {[%emt 00:01:49]} Rd5 {[%clk 00:06:54]} {[%emt
00:02:30]} 35. Rg1+ {[%clk 00:26:58]} {[%emt 00:03:19]} Kh6 {[%clk 00:05:26]}
{[%emt 00:01:59]} 36. Re1 {[%clk 00:14:54]} {[%emt 00:12:33]} Rxd6 {[%clk
00:04:45]} {[%emt 00:01:11]} 37. Rxe7 {[%clk 00:15:23]} {[%emt 00:00:01]} Kh5
{[%clk 00:03:47]} {[%emt 00:01:28]} 38. Rc7 {[%clk 00:13:36]} {[%emt 00:02:17]}
Rd8 {[%clk 00:03:51]} {[%emt 00:00:27]} 39. Rh7+ {[%clk 00:14:04]} {[%emt
00:00:02]} Kg4 {[%clk 00:04:13]} {[%emt 00:00:08]} 40. h5 {[%clk 00:13:44]}
{[%emt 00:00:49]} Kg5 {[%clk 00:01:43]} {[%emt 00:03:00]} 41. Be2 {[%clk
00:13:14]} {[%emt 00:01:00]} a5 {[%clk 00:25:09]} {[%emt 00:07:04]} 42. Rg7+
{[%clk 00:42:11]} {[%emt 00:01:33]} Kf6 {[%clk 00:24:05]} {[%emt 00:01:34]} 43.
Rg6+ {[%clk 00:40:48]} {[%emt 00:01:53]} Ke5 {[%clk 00:18:30]} {[%emt
00:06:05]} 44. Bd3 {[%clk 00:39:35]} {[%emt 00:01:42]} Rh8 {[%clk 00:16:30]}
{[%emt 00:02:30]} 45. h6 {[%clk 00:39:42]} {[%emt 00:00:23]} c4 {[%clk
00:14:36]} {[%emt 00:02:24]} 46. Bxc4 {[%clk 00:38:07]} {[%emt 00:02:05]} Bf5
{[%clk 00:15:00]} {[%emt 00:00:06]} 47. Rg5 {[%clk 00:36:16]} {[%emt 00:02:21]}
Rxh6 {[%clk 00:14:06]} {[%emt 00:01:23]} 48. Bd3 {[%clk 00:36:25]} {[%emt
00:00:23]} Rf6 {[%clk 00:14:35]} 49. Kd2 {[%clk 00:32:59]} {[%emt 00:03:56]}
Ke6 {[%clk 00:14:02]} {[%emt 00:01:03]} 50. a4 {[%clk 00:28:36]} {[%emt
00:04:54]} Bxd3 {[%clk 00:14:02]} {[%emt 00:00:29]} 51. cxd3 {[%clk 00:29:01]}
{[%emt 00:00:04]} b6 {[%clk 00:14:21]} {[%emt 00:00:12]} 52. Kc3 {[%clk
00:29:23]} {[%emt 00:00:08]} Kd6 {[%clk 00:14:38]} {[%emt 00:00:13]} 53. Kc4
{[%clk 00:29:30]} {[%emt 00:00:22]} Rf4+ {[%clk 00:13:51]} {[%emt 00:01:17]} 54.
d4 {[%clk 00:29:42]} {[%emt 00:00:19]} Rf6 {[%clk 00:14:14]} {[%emt 00:00:07]}
55. Rg7 {[%clk 00:29:38]} {[%emt 00:00:33]} Rf2 {[%clk 00:12:59]} {[%emt
00:01:46]} 56. b3 {[%clk 00:29:25]} {[%emt 00:00:44]} Rf5 {[%clk 00:10:54]}
{[%emt 00:02:35]} 57. Rb7 {[%clk 00:28:43]} {[%emt 00:01:11]} Rd5 {[%clk
00:10:54]} {[%emt 00:00:30]} 58. b4 {[%clk 00:27:37]} {[%emt 00:01:36]} b5+
{[%clk 00:10:01]} {[%emt 00:01:23]} 59. axb5 {[%clk 00:27:54]} {[%emt
00:00:13]} cxb5+ {[%clk 00:10:29]} {[%emt 00:00:03]} 60. Rxb5 {[%clk 00:27:39]}
{[%emt 00:00:44]} Rxb5 {[%clk 00:10:51]} {[%emt 00:00:08]} 61. Kxb5 {[%clk
00:28:03]} {[%emt 00:00:06]} axb4 {[%clk 00:11:16]} {[%emt 00:00:05]} 62. Kxb4
{[%clk 00:28:27]} {[%emt 00:00:06]} Kd5 {[%clk 00:11:44]} {[%emt 00:00:02]} 63.
Kc3 {[%clk 00:28:52]} {[%emt 00:00:05]} Kd6 {[%clk 00:12:12]} {[%emt 00:00:03]}
64. Kc4 {[%clk 00:29:20]} {[%emt 00:00:02]} Kc6 {[%clk 00:12:40]} {[%emt
00:00:02]} 65. d5+ {[%clk 00:29:47]} {[%emt 00:00:02]} Kd6 {[%clk 00:13:03]}
{[%emt 00:00:07]} 66. Kd4 {[%clk 00:30:16]} Kd7 {[%clk 00:13:29]} {[%emt
00:00:04]} 67. Ke4 {[%clk 00:30:38]} {[%emt 00:00:08]} Kd6 {[%clk 00:13:56]}
{[%emt 00:00:03]} 68. Kd4 {[%clk 00:31:06]} {[%emt 00:00:02]} Kd7 {[%clk
00:14:21]} {[%emt 00:00:05]} 69. Kc5 {[%clk 00:31:32]} {[%emt 00:00:03]} Kc7
{[%clk 00:14:49]} {[%emt 00:00:02]} 70. d6+ {[%clk 00:31:57]} {[%emt 00:00:06]}
Kd7 {[%clk 00:15:17]} {[%emt 00:00:03]} 71. Kd5 {[%clk 00:32:21]} {[%emt
00:00:05]} Kd8 {[%clk 00:15:45]} {[%emt 00:00:02]} 72. Ke6 {[%clk 00:32:31]}
{[%emt 00:00:20]} Ke8 {[%clk 00:16:13]} {[%emt 00:00:02]} 73. Ke5 {[%clk
00:32:58]} {[%emt 00:00:04]} Kd7 {[%clk 00:16:39]} {[%emt 00:00:04]} 74. Kd5
{[%clk 00:33:27]} {[%emt 00:00:01]} Kd8 {[%clk 00:17:03]} {[%emt 00:00:06]} 75.
Ke6 {[%clk 00:33:55]} {[%emt 00:00:01]} Ke8 {[%emt 00:00:25]} 1/2-1/2

[Event "Junior-SM 2025"]
[Site "Uppsala, Sweden"]
[Date "2025.07.05"]
[Round "8.3"]
[White "Ral Lustig, Melvin"]
[Black "Nilsson, Oliver"]
[Result "1-0"]
[TimeControl "90 min for 40 move + 30 min with an increment of 30 sec starting move 1"]
[WhiteTitle "CM"]
[WhiteFideId "1764195"]
[BlackFideId "1730177"]
[WhiteElo "2233"]
[BlackElo "2129"]

1. Nf3 {[%clk 01:30:56]} {[%emt 00:00:03]} d5 {[%clk 01:30:18]} {[%emt
00:00:43]} 2. e3 {[%clk 01:31:20]} {[%emt 00:00:05]} c5 {[%clk 01:30:10]}
{[%emt 00:00:39]} 3. b3 {[%clk 01:31:19]} {[%emt 00:00:31]} f6 {[%clk
01:30:30]} {[%emt 00:00:09]} 4. d4 {[%clk 01:31:06]} {[%emt 00:00:43]} cxd4
{[%clk 01:25:19]} {[%emt 00:05:42]} 5. exd4 {[%clk 01:31:24]} {[%emt 00:00:11]}
Nc6 {[%clk 01:25:40]} {[%emt 00:00:10]} 6. Bb2 {[%clk 01:31:27]} {[%emt
00:00:26]} Bg4 {[%clk 01:25:31]} {[%emt 00:00:40]} 7. Be2 {[%clk 01:30:59]}
{[%emt 00:00:58]} e6 {[%clk 01:25:36]} {[%emt 00:00:24]} 8. Nh4 {[%clk
01:27:45]} {[%emt 00:03:45]} Bxe2 {[%clk 01:24:19]} {[%emt 00:01:47]} 9. Qxe2
{[%clk 01:26:49]} {[%emt 00:01:26]} Qd7 {[%clk 01:24:01]} {[%emt 00:00:48]} 10.
O-O {[%clk 01:23:05]} {[%emt 00:04:13]} O-O-O {[%clk 01:11:22]} {[%emt
00:13:08]} 11. Nf3 {[%clk 01:20:29]} {[%emt 00:03:07]} g5 {[%clk 01:06:13]}
{[%emt 00:05:41]} 12. Nbd2 {[%clk 01:10:30]} {[%emt 00:10:27]} Nh6 {[%clk
01:06:08]} {[%emt 00:00:35]} 13. Rfd1 {[%clk 00:49:44]} {[%emt 00:21:17]} Nf5
{[%clk 01:02:06]} {[%emt 00:04:31]} 14. Nf1 {[%clk 00:49:10]} {[%emt 00:01:05]}
g4 {[%clk 01:01:16]} {[%emt 00:01:20]} 15. Ne1 {[%clk 00:49:31]} {[%emt
00:00:09]} h5 {[%clk 00:59:55]} {[%emt 00:01:51]} 16. Ne3 {[%clk 00:43:22]}
{[%emt 00:06:39]} Bd6 {[%clk 00:50:40]} {[%emt 00:09:45]} 17. Nxf5 {[%clk
00:40:34]} {[%emt 00:03:18]} exf5 {[%clk 00:49:36]} {[%emt 00:01:34]} 18. c4
{[%clk 00:40:11]} {[%emt 00:00:52]} Rde8 {[%clk 00:44:05]} {[%emt 00:06:02]} 19.
Qc2 {[%clk 00:39:57]} {[%emt 00:00:44]} Bc7 {[%clk 00:39:16]} {[%emt 00:05:19]}
20. Nd3 {[%clk 00:22:33]} {[%emt 00:17:54]} Kb8 {[%clk 00:32:15]} {[%emt
00:07:30]} 21. Nc5 {[%clk 00:09:46]} {[%emt 00:13:18]} Qd6 {[%clk 00:31:54]}
{[%emt 00:00:51]} 22. g3 {[%clk 00:10:12]} {[%emt 00:00:04]} f4 {[%clk
00:20:26]} {[%emt 00:11:58]} 23. Ba3 {[%clk 00:10:37]} {[%emt 00:00:06]} Ne7
{[%clk 00:20:08]} {[%emt 00:00:48]} 24. Re1 {[%clk 00:05:30]} {[%emt 00:05:37]}
fxg3 {[%clk 00:16:29]} {[%emt 00:04:09]} 25. hxg3 {[%clk 00:05:58]} {[%emt
00:00:01]} Nc8 {[%clk 00:14:19]} {[%emt 00:02:41]} 26. Qf5 {[%clk 00:05:45]}
{[%emt 00:00:42]} Rxe1+ 27. Rxe1 {[%clk 00:06:14]} Ka8 {[%clk 00:13:01]} {[%emt
00:00:52]} 28. Ne6 {[%clk 00:03:50]} {[%emt 00:02:54]} Qxa3 {[%clk 00:13:11]}
{[%emt 00:00:20]} 29. Nxc7+ {[%clk 00:04:16]} {[%emt 00:00:04]} Kb8 {[%clk
00:13:34]} {[%emt 00:00:07]} 30. Nxd5 {[%clk 00:04:36]} {[%emt 00:00:10]} a6
{[%clk 00:13:44]} {[%emt 00:00:20]} 31. Qxf6 {[%clk 00:03:48]} {[%emt
00:01:18]} Rf8 {[%clk 00:14:04]} {[%emt 00:00:10]} 32. Qe5+ {[%clk 00:04:03]}
{[%emt 00:00:14]} Ka7 {[%clk 00:14:24]} {[%emt 00:00:11]} 33. Nf4 {[%clk
00:04:00]} {[%emt 00:00:34]} Qb4 {[%clk 00:13:45]} {[%emt 00:01:08]} 34. Nd3
{[%clk 00:03:49]} {[%emt 00:00:42]} Qb6 {[%clk 00:13:54]} {[%emt 00:00:21]} 35.
Qc5 {[%clk 00:02:46]} {[%emt 00:01:32]} Rd8 {[%clk 00:14:05]} {[%emt 00:00:19]}
36. d5 {[%clk 00:02:46]} {[%emt 00:00:30]} Qxc5 {[%clk 00:13:53]} {[%emt
00:00:43]} 37. Nxc5 {[%clk 00:03:11]} {[%emt 00:00:05]} Kb6 {[%clk 00:14:20]}
{[%emt 00:00:03]} 38. Ne6 {[%clk 00:03:00]} {[%emt 00:00:40]} Rd7 {[%clk
00:14:24]} {[%emt 00:00:26]} 39. Re5 {[%clk 00:02:39]} {[%emt 00:00:51]} Ka5
{[%clk 00:14:27]} {[%emt 00:00:27]} 40. Nc5 {[%clk 00:02:29]} {[%emt 00:00:40]}
1-0